[Event "Saint Louis Super Swiss 2023"]
[Site "Saint Louis"]
[Date "2023.03.16"]
[Round "5.6"]
[White "Jacobson, Brandon"]
[Black "Stearman, Josiah"]
[Result "1-0"]
[ECO "B50"]
[WhiteElo "2543"]
[BlackElo "2391"]
[Annotator "TA"]
[PlyCount "69"]
[EventDate "2023.03.12"]
[EventType "swiss"]
[EventCountry "USA"]
[TimeControl "5400+30"]

{[%evp 9,69,8,10,7,3,0,7,9,0,0,10,0,9,21,15,7,57,65,84,75,79,79,96,103,127,133,126,105,175,100,102,105,114,115,286,286,340,338,337,345,347,330,389,389,380,380,369,382,367,342,367,337,345,319,495,475,529,493,934,849,893,869]} 1. e4 {[%emt 0:00:11]} c5 {[%emt 0:00:42]} 2. Nf3 {[%emt 0:00:10]} e6 {[%emt 0:00:54]} 3. b3 {[%emt 0:02:56]} d6 {[%emt 0:02:06]} 4. Bb5+ {[%emt 0:04:22]} Nd7 {[%emt 0:03:10]} 5. O-O {[%emt 0:03:39]} a6 {[%emt 0:02:41]} 6. Bxd7+ {[%emt 0:00:10] B50: Sicilian: 2...d6, Miscellaneous.} Bxd7 {[%emt 0:00:05]} 7. Bb2 {[%emt 0:00:15]} Nf6 {[%emt 0:01:35]} 8. e5 {[%emt 0:01:25] The position is equal.} dxe5 {[%emt 0:00:21]} 9. Nxe5 {[%emt 0:00:08] [#]} Bd6 $146 {[%emt 0:02:09]} ({Predecessor:} 9... Be7 10. Nxd7 Qxd7 11. d3 O-O 12. Qf3 Rfd8 13. Nc3 Rac8 14. Qg3 Qc7 15. f4 Bf8 {0-1 Rivero Gil,C (1195)-Gonzalez Lopez,L (1612) ESP-ch U10 Salobrena 2022 (2)}) 10. d3 {[%emt 0:03:08]} Bxe5 {[%emt 0:01:27]} 11. Bxe5 {[%emt 0:00:09]} Bc6 {[%emt 0:00:06] Strongly threatening ...Qd5.} 12. Qe2 {[%emt 0:02:14]} h5 {[%emt 0:04:51]} (12... O-O $11) 13. Nd2 $14 {[%emt 0:08:28]} Qd5 {[%emt 0:10:00][%csl Gc6][%cal Rd5g2]} 14. f4 {[%emt 0:04:19][%cal Bf2f4,Bf4e5][%mdl 32]} Ng4 {[%emt 0:00:52]} 15. Nc4 $1 {[%emt 0:03:03]} ({Much worse is} 15. Bxg7 Rg8 16. Bb2 Nxh2 $11) (15. c4 Qd7 $11) 15... Nxe5 {[%emt 0:07:36]} 16. fxe5 {[%emt 0:04:23] Nd6+ is the strong threat.} Ke7 {[%emt 0:05:15]} 17. Rf4 {[%emt 0:05:19]} ({But not} 17. Qf2 $6 Qd4 $11) 17... Raf8 {[%emt 0:01:27]} 18. Re1 {[%emt 0:08:17]} Rh6 {[%emt 0:08:00]} (18... f5 $16) 19. Ne3 {[%emt 0:04:49]} (19. Qf2 $18) 19... Qd7 {[%emt 0:03:23]} 20. Qf2 {[%emt 0:10:18] Threatens to win with Nc4. White is more active.} f5 {[%emt 0:09:04]} 21. Nc4 {[%emt 0:00:54]} Qd5 $2 {[%emt 0:04:49] [#] Black cannot hold the game after this.} (21... Kf7 $16) 22. Qg3 $1 $18 {[%emt 0:03:47]} Rg8 {[%emt 0:07:05] [#]} 23. Qg5+ $1 {[%emt 0:02:13]} ({Worse is} 23. Nb6 Qd8 24. Qg5+ Kf7 25. Qxd8 Rxd8 $11) 23... Ke8 {[%emt 0:00:42]} 24. Nd6+ {[%emt 0:07:01]} Kd7 {[%emt 0:00:06]} 25. Re3 {[%emt 0:00:29]} Kc7 {[%emt 0:08:59]} 26. c4 {[%emt 0:02:36][%mdl 64] Trapped Piece} Qxg2+ {[%emt 0:00:06]} 27. Qxg2 {[%emt 0:00:04]} Bxg2 {[%emt 0:00:05]} 28. Kxg2 {[%emt 0:00:04]} g5 {[%emt 0:00:27]} 29. Rf1 {[%emt 0:00:07]} h4 {[%emt 0:01:40] [#]} 30. b4 $1 {[%emt 0:02:03][%mdl 64] Deflection} cxb4 {[%emt 0:00:41]} 31. d4 {[%emt 0:00:06][%cal Bd3d4,Bd4d5,Bd5d6][%mdl 32]} g4 {[%emt 0:00:30]} (31... h3+ $142 32. Kf2 Rh4) 32. d5 {[%emt 0:00:22] White is clearly winning.} Kd7 {[%emt 0:01:47]} 33. Nxb7 {[%emt 0:01:51]} Ke7 {[%emt 0:00:53]} (33... Rc8 $142 34. Nd6 Rf8) 34. d6+ {[%emt 0:00:26]} Kd7 {[%emt 0:00:24]} 35. Nc5+ {[%emt 0:00:15] Weighted Error Value: White=0.06 (flawless) /Black=0.38} 1-0

[Event "Saint Louis Super Swiss 2023"]
[Site "Saint Louis"]
[Date "2023.03.17"]
[Round "5.7"]
[White "Escalante Ramirez, Brian Sebasti"]
[Black "Moradiabadi, Elshan"]
[Result "1/2-1/2"]
[ECO "B30"]
[WhiteElo "2474"]
[BlackElo "2507"]
[Annotator "TA"]
[PlyCount "119"]
[EventDate "2023.03.12"]
[EventType "swiss"]
[EventCountry "USA"]
[TimeControl "5400+30"]

{[%evp 18,119,32,29,28,28,28,35,36,37,35,35,35,31,33,35,36,29,47,10,39,36,64,38,58,56,55,38,45,40,45,26,15,22,39,31,35,29,32,31,31,31,31,31,42,32,58,61,70,69,76,54,93,96,91,22,22,0,0,0,0,0,0,-16,-12,-4,0,-63,-47,-45,-39,-108,-78,-75,-50,-37,-8,-8,-8,-21,0,-14,0,-20,0,0,0,0,0,0,0,0,0,0,0,0,0,0,0,0,0,0,0,0]} 1. e4 {[%emt 0:07:31]} c5 {[%emt 0:00:05]} 2. Nf3 {[%emt 0:00:07][%cal Bg1f3,Bf3d2,Bd2f1,Bf1e3,Be3d5][%mdl 32]} d6 {[%emt 0:00:05]} 3. Nc3 {[%emt 0:00:51]} e5 {[%emt 0:01:52]} 4. Bc4 {[%emt 0:00:26]} Nc6 {[%emt 0:00:01]} 5. d3 {[%emt 0:02:12]} Be7 {[%emt 0:01:06]} 6. Nd2 {[%emt 0:03:50]} Nf6 {[%emt 0:04:07][%cal Bg8f6,Bf6d7,Bd7e5][%mdl 32]} 7. Nf1 {[%emt 0:00:04]} Bg4 {[%emt 0:00:03]} 8. f3 {[%emt 0:04:57]} Be6 {[%emt 0:00:02]} 9. Ne3 {[%emt 0:00:06]} O-O {[%emt 0:01:40]} 10. O-O {[%emt 0:00:03]} Nd7 {[%emt 0:09:22] 10...a6 gains popularity. B30: Sicilian: 2...Nc6 3 Bb5, lines without ...g6.} 11. Ned5 {[%emt 0:06:12]} a6 {[%emt 0:02:06]} 12. a4 {[%emt 0:12:21]} Rc8 {[%emt 0:11:23] White is slightly better.} 13. f4 {[%emt 0:17:13]} exf4 {[%emt 0:00:12]} 14. Bxf4 {[%emt 0:00:03]} Nde5 {[%emt 0:01:18] [#]} 15. Nxe7+ $146 {[%emt 0:00:03]} ({Predecessor:} 15. Ba2 Bg5 16. Bg3 Nd4 17. Kh1 b5 18. axb5 axb5 19. Nb1 Bg4 20. Qe1 Nxc2 21. Qf2 Nxa1 22. Bxe5 dxe5 23. Nbc3 b4 {0-1 Ahmadzada,A (2431)-Tari,A (2639) Titled Tuesday intern op 22nd June blitz 2021 (5)}) 15... Nxe7 {[%emt 0:01:41]} 16. b3 {[%emt 0:04:39]} Qd7 {[%emt 0:05:45]} 17. a5 {[%emt 0:01:03]} Rce8 {[%emt 0:13:49]} 18. Na4 {[%emt 0:07:33][%cal Oa4c5,Bc3a4,Ba4b2,Bb2c4][%mdl 32]} N5g6 {[%emt 0:01:12]} 19. Bg3 {[%emt 0:01:24]} Nc8 {[%emt 0:05:01]} 20. Qh5 {[%emt 0:01:05] White is more active.} Kh8 {[%emt 0:04:46]} 21. h3 {[%emt 0:00:45]} f6 {[%emt 0:00:06]} 22. Nb2 {[%emt 0:05:21]} Ne5 {[%emt 0:00:24]} 23. Bxe6 {[%emt 0:01:31]} Qxe6 {[%emt 0:00:46]} 24. Qf5 {[%emt 0:03:36]} Qxf5 {[%emt 0:01:51]} 25. Rxf5 {[%emt 0:00:02]} Ne7 {[%emt 0:00:05]} 26. Rff1 {[%emt 0:00:11]} N7c6 {[%emt 0:00:15]} 27. Nc4 {[%emt 0:00:18]} Rd8 {[%emt 0:00:04]} 28. Ne3 {[%emt 0:04:44]} Kg8 {[%emt 0:00:09]} 29. Kf2 {[%emt 0:00:30][%cal Bg1f2,Bf2e1,Be1d2][%mdl 32]} Kf7 {[%emt 0:00:24]} 30. Ke1 {[%emt 0:00:22]} Ke6 {[%emt 0:00:38]} 31. Kd2 {[%emt 0:00:05]} Rf7 {[%emt 0:01:08]} 32. Ra4 {[%emt 0:02:52]} Ne7 {[%emt 0:01:35]} 33. b4 {[%emt 0:00:51]} N7c6 {[%emt 0:01:08]} 34. Bxe5 {[%emt 0:08:12]} Nxe5 {[%emt 0:02:03]} 35. Rb1 {[%emt 0:00:40]} g6 {[%emt 0:00:37][%cal Bg7g6,Bg6f5,Bf5f4][%mdl 32]} 36. c3 {[%emt 0:08:45]} (36. g4 $16) 36... f5 $11 37. d4 {[%emt 0:00:00]} cxd4 {[%emt 0:06:41]} 38. cxd4 {[%emt 0:00:00]} Nd7 {[%emt 0:01:05]} 39. exf5+ {[%emt 0:00:00]} gxf5 {[%emt 0:00:01]} 40. b5 {[%emt 0:00:00]} f4 {[%emt 0:02:26]} 41. Nc2 {[%emt 0:00:00]} Rg8 {[%emt 0:03:45]} 42. Ne1 {[%emt 0:00:00]} (42. Re1+ $1 $11 Kf6 43. Re2) 42... Nf6 {[%emt 0:01:50] White must now prevent ...Ne4+.} 43. bxa6 {[%emt 0:00:11]} bxa6 {[#] And now ...Ne4+ would win.} 44. Rab4 {[%emt 0:00:00]} (44. d5+ $15 Nxd5 45. Re4+ Kf6 46. Rd4) 44... Rg5 {[%emt 0:02:13]} 45. Ra1 {[%emt 0:00:00]} Ne4+ {[%emt 0:03:30]} 46. Ke2 $1 {[%emt 0:00:35][%cal Od4d5]} Rg3 {[%emt 0:01:21]} 47. d5+ $1 {[%emt 0:01:54][%mdl 64] [#] Discovered Attack. The position is equal.} Kf5 {[%emt 0:00:15]} 48. Kf1 {[%emt 0:00:01]} Nd2+ {[%emt 0:02:41]} (48... Rb3 $5 49. Raa4 (49. Rxb3 Nd2+ 50. Kg1 Nxb3 $15) (49. g4+ fxg3 50. Rxb3 Nd2+ 51. Kg2 Nxb3 $17) 49... Rxb4 50. Rxb4 Re7 $15) 49. Kf2 {[%emt 0:00:06]} Ne4+ {[%emt 0:04:40]} 50. Kf1 {[%emt 0:00:01]} Nd2+ {[%emt 0:02:27]} (50... Rb3 $5 51. Raa4 (51. Rxb3 Nd2+ 52. Kg1 Nxb3 $15) (51. g4+ fxg3 52. Rxb3 Nd2+ 53. Kg2 Nxb3 $17) 51... Rxb4 52. Rxb4 Rc7 $15) 51. Ke2 {[%emt 0:00:13]} Nb3 {[%emt 0:00:07]} 52. Raa4 {[%emt 0:00:04]} Re3+ {[%emt 0:00:55]} ({Don't play} 52... Re7+ 53. Kf2 Kg6 54. Rxf4 $14) 53. Kf2 {[%emt 0:00:34]} Ke5 {[%emt 0:00:33]} 54. Ra3 {[%emt 0:02:10]} Nc5 {[%emt 0:00:17]} 55. Rxe3+ {[%emt 0:00:16]} fxe3+ {[%emt 0:00:02]} 56. Kxe3 {[%emt 0:00:03]} Kxd5 {[%emt 0:00:02] Strongly threatening ...Re7+.} 57. Nd3 {[%emt 0:01:08]} Nxd3 {[%emt 0:02:18]} 58. Kxd3 {[%emt 0:01:08]} Rg7 {[%emt 0:00:04]} 59. g4 {[%emt 0:00:21]} h5 {[%emt 0:01:40]} 60. Rb6 {[%emt 0:00:31] Weighted Error Value: White=0.09 (flawless) /Black=0.08 (flawless)} 1/2-1/2

[Event "Saint Louis Super Swiss 2023"]
[Site "Saint Louis"]
[Date "2023.03.16"]
[Round "5.8"]
[White "Kavutskiy, Konstantin"]
[Black "Raja Harshit"]
[Result "0-1"]
[ECO "B57"]
[WhiteElo "2405"]
[BlackElo "2498"]
[Annotator "TA"]
[PlyCount "80"]
[EventDate "2023.03.12"]
[EventType "swiss"]
[EventCountry "USA"]
[TimeControl "5400+30"]

{[%evp 12,80,29,27,37,46,69,69,62,1,1,0,-1,-8,-7,-3,-9,-16,-7,-12,0,0,4,-36,-4,-55,-27,-42,-35,-41,-23,-49,-22,-17,0,-52,-9,-20,21,-20,-22,-23,-11,-31,-37,-36,-32,-58,-43,-70,-87,-77,-82,-116,-112,-128,-109,-166,-141,-209,-202,-581,-584,-572,-560,-594,-593,-625,-625,-609,-555]} 1. e4 {[%emt 0:11:15]} c5 {[%emt 0:00:24]} 2. Nf3 {[%emt 0:00:19]} d6 {[%emt 0:00:08]} 3. d4 {[%emt 0:00:05]} cxd4 {[%emt 0:00:05]} 4. Nxd4 {[%emt 0:00:05]} Nf6 {[%emt 0:00:10]} 5. Nc3 {[%emt 0:00:07]} Nc6 {[%emt 0:00:08]} 6. Bc4 {[%emt 0:00:12]} Qb6 {[%emt 0:01:13]} 7. Nb3 {[%emt 0:01:24]} g6 {[%emt 0:03:31] B57: Classical Sicilian: Sozin with 6...Qb6.} 8. Bg5 {[%emt 0:10:47]} Ng4 {[%emt 0:00:28][%csl Gg4][%cal Rb6f2]} 9. Qd2 {[%emt 0:06:10]} (9. Qf3 Nge5 10. Qe2 Nxc4 11. Qxc4 Bg7 $11) 9... Be6 {[%emt 0:08:43] [#] White is slightly better.} 10. Bd3 $146 {[%emt 0:06:24]} (10. Bxe6 $1 $14 fxe6 11. Qe2) ({Predecessor:} 10. Bxe6 fxe6 11. Qe2 Nge5 12. Be3 Qd8 13. f4 Nd7 14. h4 Nf6 15. O-O-O e5 16. g4 {½-½ Bazeev,G (2134)-Palchun,G (2107) St Petersburg March op 2008 (7)}) 10... h6 $11 {[%emt 0:03:49]} 11. Bh4 {[%emt 0:03:25]} Bg7 {[%emt 0:01:12]} 12. f3 {[%emt 0:09:46]} Nge5 {[%emt 0:04:01]} 13. Bf2 {[%emt 0:00:48]} Qb4 {[%emt 0:04:56]} 14. O-O {[%emt 0:05:14] aiming for a3.} Nxd3 {[%emt 0:04:46]} 15. cxd3 {[%emt 0:00:13]} Bxb3 {[%emt 0:01:41]} 16. axb3 {[%emt 0:01:08]} O-O {[%emt 0:13:06]} 17. Ra3 {[%emt 0:07:39]} b5 {[%emt 0:07:09]} 18. Kh1 {[%emt 0:06:30]} (18. Rd1 $11) 18... e6 {[%emt 0:05:04]} 19. Be3 {[%emt 0:06:20]} Kh7 {[%emt 0:04:07]} 20. Qc1 {[%emt 0:01:17] Strongly threatening Na2.} Nd4 {[%emt 0:00:47]} 21. Na2 $1 {[%emt 0:01:37]} Qc5 {[%emt 0:00:25]} 22. b4 {[%emt 0:00:41]} Qh5 {[%emt 0:03:51]} (22... Qc2 {simplifies} 23. Bxd4 Qxc1 24. Rxc1 Bxd4 25. Nc3 Rfc8) 23. Nc3 {[%emt 0:00:51]} (23. Qd2 $11) 23... Nc6 {[%emt 0:05:15]} (23... Be5 24. f4 Bg7 25. Ra6 $14) (23... a5 $5 {[%cal Ra5b4]}) 24. Nd5 {[%emt 0:05:29] And now Nc7 would win.} Rfc8 {[%emt 0:05:28][%cal Bf8c8,Bc8c7,Bc7d7][%mdl 32] Prevents Nc7} (24... Be5 25. Nf4 (25. Qxc6 $2 Qxh2#) 25... Bxf4 26. Bxf4 $16) (24... Rac8 $5 {[%cal Re6d5]} 25. Nf4 Qh4 $11) 25. Nf4 {[%emt 0:00:28]} (25. Nb6 $5 axb6 26. Rxa8 Rxa8 27. Qxc6 $14) 25... Qh4 {[%emt 0:00:29]} 26. Qd2 {[%emt 0:00:59]} Rc7 {[%emt 0:05:27]} 27. Ne2 {[%emt 0:02:07]} d5 {[%emt 0:04:33]} (27... Be5 28. g3 Qd8 29. d4 $14 (29. Bxh6 Nxb4 30. d4 Bf6 $11)) 28. Bc5 {[%emt 0:05:26]} Rd8 {[%emt 0:01:07]} (28... Be5 29. f4 Bg7 30. exd5 exd5 31. d4 $14 (31. Nc3 Rb7 $16)) 29. Nc3 {[%emt 0:01:17]} dxe4 {[%emt 0:01:21]} (29... Be5 30. f4 (30. Nxb5 $2 Qxh2#) 30... Bxc3 31. Qxc3 $11) 30. fxe4 {[%emt 0:00:12]} Rcd7 {[%emt 0:02:15]} (30... Be5 31. g3 Bxg3 32. Qg2 Rxd3 33. Nd5 (33. Nxb5 Rcd7 $17) 33... Rxa3 34. Nxc7 $11) 31. Nxb5 {[%emt 0:00:43]} Ne5 $40 {[%emt 0:01:05][%mdl 128] Hoping for ...Nc4. Black attacks with force.} (31... Be5 32. g3 Bxg3 33. Qg2 Rxd3 34. Nd4 (34. Nxa7 Ne5 $17) (34. Rxf7+ Kh8 $11) 34... Rxa3 35. Nxc6 Bxh2 36. bxa3 Bf4+ 37. Kg1 $11) 32. Qf2 {[%emt 0:02:49]} Qxf2 {[%emt 0:00:39]} 33. Bxf2 {[%emt 0:00:13]} Nxd3 {[%emt 0:00:26]} 34. Bxa7 {[%emt 0:00:12]} (34. Bc5 $17) 34... Rb7 {[%emt 0:02:03]} 35. Nc3 {[%emt 0:00:27]} (35. Ra5 $17) 35... Nxb2 $19 {[%emt 0:00:06]} ({Stronger than} 35... Rxb4 36. Rxf7 Kg8 37. Rf1 $17) ({Inferior is} 35... Nxb4 36. Bg1 $17) 36. b5 $2 {[%emt 0:02:50]} (36. Nb1 {is more resistant.}) 36... Bxc3 {[%emt 0:00:49][%mdl 64] [#] Deflection. Black is clearly winning.} 37. Rxc3 {[%emt 0:00:05]} Rxa7 {[%emt 0:00:38]} 38. b6 {[%emt 0:00:07]} Rb7 {[%emt 0:00:32]} 39. Rc7 {[%emt 0:00:22] [#]} Rd7 $1 {[%emt 0:00:03]} ({And not} 39... Rxb6 40. Rfxf7+ Kh8 41. Rh7+ Kg8 42. Rhg7+ Kh8 43. Rh7+ Kg8 44. Rhg7+ Kh8 45. Rh7+ $11) 40. Rfc1 {[%emt 0:02:25]} Na4 {[%emt 0:00:40] Weighted Error Value: White=0.29 (precise) /Black=0.09 (flawless)} 0-1

[Event "Saint Louis Super Swiss 2023"]
[Site "Saint Louis"]
[Date "2023.03.16"]
[Round "5.9"]
[White "Durarbayli, Vasif"]
[Black "Jacobson, Aaron"]
[Result "1-0"]
[ECO "C42"]
[WhiteElo "2635"]
[BlackElo "2308"]
[Annotator "TA"]
[PlyCount "73"]
[EventDate "2023.03.12"]
[EventType "swiss"]
[EventCountry "USA"]
[TimeControl "5400+30"]

{[%evp 17,73,0,10,0,43,42,49,8,25,0,41,41,31,29,33,26,20,8,9,0,19,18,8,0,0,0,52,51,45,47,32,74,79,77,352,268,268,246,251,262,395,388,400,370,452,316,349,341,636,304,485,485,470,466,429,454,1018,736]} 1. e4 {[%emt 0:00:01]} e5 {[%emt 0:01:42]} 2. Nf3 {[%emt 0:00:10]} Nf6 {[%emt 0:00:06]} 3. Nxe5 {[%emt 0:00:06]} d6 {[%emt 0:00:03]} 4. Nf3 {[%emt 0:00:06]} Nxe4 {[%emt 0:00:05]} 5. d4 {[%emt 0:00:04]} d5 {[%emt 0:00:04]} 6. Bd3 {[%emt 0:00:05]} Bd6 {[%emt 0:00:18]} 7. O-O {[%emt 0:00:11]} O-O {[%emt 0:00:06]} 8. c4 {[%emt 0:00:04][%cal Bc2c4,Bc4c5][%mdl 32]} c6 {[%emt 0:00:06]} 9. Qc2 {[%emt 0:01:18]} Na6 {[%emt 0:08:47]} 10. a3 {[%emt 0:03:58] Inhibits Nb4. C42: Petroff Defence: 3 Nxe5 and unusual White 3rd moves.} Bf5 {[%emt 0:00:39] 10...f5 is becoming the main line.} (10... Bg4 $5 {[%cal Rg4f3]}) 11. Nc3 {[%emt 0:06:05][%cal Rc3e4]} Re8 {[%emt 0:06:41]} 12. c5 $5 {[%emt 0:03:41][%mdl 4] White is slightly better. Exploring less charted territory.} Bc7 {[%emt 0:07:46] [#]} 13. b4 $146 {[%emt 0:02:32]} ({Predecessor:} 13. Be3 Bg6 14. Rad1 Nb8 15. Ne5 Bxe5 16. dxe5 Qe7 17. Nxe4 dxe4 18. Bxe4 Bxe4 19. Qxe4 {1-0 Rios Parra,A (2355)-Ferreira Morales,J (1835) Bogota McGregor op 2nd 2011 (1)}) 13... Re6 {[%emt 0:10:09]} 14. Be3 {[%emt 0:09:43][%cal Of3g5]} Bg6 {[%emt 0:11:10]} 15. Rab1 {[%emt 0:09:16]} Nb8 {[%emt 0:04:49]} 16. Ne2 {[%emt 0:02:04]} Bh5 {[%emt 0:12:16]} 17. Ng3 {[%emt 0:01:04]} (17. Ne1 {seems wilder.} Nd7 18. Rb3 b6 19. Nf4) 17... Bg6 {[%emt 0:08:21]} 18. Ne2 {[%emt 0:00:19]} Bh5 {[%emt 0:01:45]} 19. Rfe1 {[%emt 0:03:09][%cal Of3e5]} Nd7 {[%emt 0:08:57] Against Ne5} 20. Ng3 $36 {[%emt 0:04:50][%mdl 2048] White has the initiative.} (20. Nd2 {is interesting.} Qh4 21. g3 Qh3 22. Nf4) 20... Bg6 {[%emt 0:00:52]} 21. b5 {[%emt 0:00:36]} Qe7 {[%emt 0:06:26]} (21... cxb5 $11 22. Rxb5 b6) 22. bxc6 {[%emt 0:01:45]} bxc6 {[%emt 0:00:03]} 23. Bxe4 {[%emt 0:01:42]} dxe4 {[%emt 0:04:16]} 24. Ng5 {[%emt 0:00:29][%cal Bf3g5,Bg5e4,Be4d6][%mdl 32]} Rf6 {[%emt 0:01:52]} 25. Rb7 {[%emt 0:00:36] White is more active.} (25. N5xe4 Bxg3 26. Bg5 Bxf2+ 27. Qxf2 Bxe4 $17) 25... Bf4 {[%emt 0:02:00][%mdl 8192] [#] This move loses the game for Black.} (25... Qd8 $16) 26. N5xe4 {[%emt 0:06:49]} Bxe3 {[%emt 0:02:10]} 27. Rxe3 {[%emt 0:01:53]} (27. fxe3 Re6 $11) 27... Re6 {[%emt 0:00:14]} 28. Qe2 {[%emt 0:00:54]} Qd8 {[%emt 0:01:41]} (28... Rb8 $142 29. Rxb8+ (29. Rxa7 $2 Rb1+ 30. Nf1 Bxe4 $19) 29... Nxb8) 29. Nd6 $18 {[%emt 0:01:24]} Rxe3 {[%emt 0:00:08]} 30. Qxe3 {[%emt 0:00:31]} (30. fxe3 Rb8 31. Qa6 (31. Rxa7 Rb1+ 32. Nf1 h6 $18) 31... Rxb7 32. Qxb7 h6 33. Qxc6 Nf6 $18) 30... Nf6 {[%emt 0:00:38][%cal Bd7f6,Bf6d5,Bd5c3][%mdl 32]} 31. Qf3 {[%emt 0:02:53]} Nd5 {[%emt 0:00:10]} 32. Ngf5 {[%emt 0:03:06]} (32. Nxf7 Qa5 $14) 32... h5 $2 {[%emt 0:01:38]} (32... Qa5 33. h4 Rf8 34. Ne7+ Nxe7) 33. Ne3 {[%emt 0:04:36] Excellent horsemanship.} (33. Rxf7 $142 Bxf5 34. Qxf5) 33... Qa5 {[%emt 0:00:30]} (33... Nxe3 $142 34. fxe3 (34. Qxe3 Rb8 $18) 34... Qa5) 34. h3 {[%emt 0:02:46] White is clearly winning.} (34. Nxf7 $2 Qe1+ 35. Nf1 Rf8 $19) 34... Qe1+ {[%emt 0:00:08]} 35. Kh2 {[%emt 0:00:01]} Nc3 {[%emt 0:00:13] White must now prevent ...Ne2.} 36. Re7 {[%emt 0:01:35] Threatens to win with Nef5.} (36. Qxc6 {leads to mate.} Ne2) ({Less strong is} 36. Rb2 Rd8 37. Nec4 (37. Qxc6 Ne2 $14) 37... Nb5 38. Nxb5 (38. Qxc6 Nxd4 39. Qc7 Ne6 $16) 38... cxb5 $18) 36... Rb8 {[%emt 0:01:09] [#]} (36... Ne2 $142 37. Nf1 (37. Qxc6 $2 Qg1#) 37... Qxf1 38. Rxe2 a6 39. Qxc6 Qxe2) 37. Nd5 $1 {[%emt 0:01:14][%mdl 576] Discovered Attack.   Weighted Error Value: White=0.24 (precise) /Black=0.58} 1-0

[Event "Saint Louis Super Swiss 2023"]
[Site "Saint Louis"]
[Date "2023.03.17"]
[Round "5.10"]
[White "Hakobyan, Aram"]
[Black "Park, Evan"]
[Result "1-0"]
[ECO "C54"]
[WhiteElo "2620"]
[BlackElo "2383"]
[Annotator "TA"]
[PlyCount "79"]
[EventDate "2023.03.12"]
[EventType "swiss"]
[EventCountry "USA"]
[TimeControl "5400+30"]

{[%evp 10,79,9,9,14,10,20,18,17,12,15,9,5,0,0,0,0,0,3,-3,0,0,0,0,0,0,0,9,0,41,93,75,72,43,66,70,77,79,73,69,66,0,0,-166,0,0,92,72,204,191,176,160,165,157,282,272,257,270,376,370,1104,436,694,694,694,693,686,686,648,559,29998,29999]} 1. e4 {[%emt 0:01:38]} e5 {[%emt 0:00:26]} 2. Nf3 {[%emt 0:00:06]} Nc6 {[%emt 0:00:17]} 3. Bc4 {[%emt 0:00:07]} Nf6 {[%emt 0:01:18]} 4. d3 {[%emt 0:00:02]} Bc5 {[%emt 0:01:03]} 5. O-O {[%emt 0:00:11]} d6 {[%emt 0:00:12]} 6. c3 {[%emt 0:00:06]} a5 {[%emt 0:01:16] C54: Giuoco Piano: 4 c3 Nf6, main lines with 5 d4 and 5 d3.} 7. Re1 {[%emt 0:00:24]} O-O {[%emt 0:01:39]} 8. h3 {[%emt 0:00:08]} h6 {[%emt 0:00:38] The position is equal.} 9. Nbd2 {[%emt 0:00:18]} Be6 {[%emt 0:01:39]} 10. Bb5 {[%emt 0:00:18]} Qb8 {[%emt 0:00:46]} 11. Bxc6 {[%emt 0:00:32]} bxc6 {[%emt 0:00:05]} 12. d4 {[%emt 0:00:10]} exd4 {[%emt 0:01:09]} 13. cxd4 {[%emt 0:00:02]} Bb6 {[%emt 0:00:12]} 14. Nf1 {[%emt 0:00:12]} d5 {[%emt 0:03:48]} 15. e5 {[%emt 0:01:47]} Ne4 {[%emt 0:00:26]} 16. Be3 {[%emt 0:00:08]} a4 {[%emt 0:08:16] [#]} 17. Rc1 $146 {[%emt 0:00:23]} ({Predecessor:} 17. Qc1 Qe8 18. Ng3 Nxg3 19. fxg3 {½-½ Baklan,V (2608)-Kravtsiv,M (2644) UKR-ch 87th Kiev 2018 (6)}) 17... Ba5 $1 {[%emt 0:02:50][%csl LRb2,LRe1]} 18. Re2 {[%emt 0:00:04]} a3 {[%emt 0:07:38]} 19. b3 {[%emt 0:01:10]} Nc3 {[%emt 0:17:38] [#]} ({Black should play} 19... c5 $14) 20. Rxc3 $1 $16 {[%emt 0:00:03]} Bxc3 {[%emt 0:00:05] [#]} 21. Bxh6 $1 {[%emt 0:00:12][%cal Od1c1]} Bb4 {[%emt 0:02:51] [#]} (21... Re8 22. Rc2) 22. Qc1 {[%emt 0:01:22][%mdl 1024] White has compensation.} Re8 $1 {[%emt 0:02:43] [#]} (22... gxh6 $2 23. Qxh6 Be7 24. Ng3 $18) 23. Ng3 $1 {[%emt 0:02:53] Qg5 would be deadly.} Bf8 {[%emt 0:02:14]} (23... gxh6 $2 24. Qxh6 Bf8 25. Qg5+ Bg7 26. Nh5 $18) 24. Bg5 {[%emt 0:34:51][%cal Og5f6] White is more active.} Qb5 {[%emt 0:06:59]} 25. Qd2 {[%emt 0:04:42]} (25. Rc2 $14) 25... c5 $11 {[%emt 0:03:21]} 26. Bf6 $2 {[%emt 0:01:19] [#]} Ra6 $2 {[%emt 0:04:10]} (26... gxf6 $2 27. exf6 Kh8 28. Re5 $18) (26... c4 $1 $19 {[%cal Rc4b3] Threatens to win with ...cxb3!} 27. bxc4 Qb1+ 28. Re1 Qh7) 27. dxc5 {[%emt 0:08:56][%cal Oc5c6]} Qxc5 {[%emt 0:01:50] [#]} (27... gxf6 28. exf6 $14) (27... Bxh3 $11 28. gxh3 gxf6) 28. Qg5 $1 $16 {[%emt 0:05:47][%cal Of6g7]} Rc6 {[%emt 0:01:28] This costs Black the game.} (28... Bd7 $16 {was worth a try.}) 29. Re1 {[%emt 0:01:04][%cal Of6g7] Black must now prevent Bxg7!} Bc8 {[%emt 0:19:26][%cal Oc6f6]} 30. Nh5 {[%emt 0:04:44]} g6 {[%emt 0:00:13]} 31. Bd8 {[%emt 0:02:05]} Rxd8 {[%emt 0:08:43]} (31... Qb4 $16 32. Nf6+ Rxf6 33. Bxf6 c5) 32. Qxd8 $18 {[%emt 0:00:14] Strongly threatening Nf6+.} gxh5 {[%emt 0:00:15]} 33. Qxc8 {[%emt 0:00:04]} Qc2 {[%emt 0:00:53]} 34. e6 {[%emt 0:01:45]} fxe6 {[%emt 0:00:02]} (34... Rxe6 35. Rxe6 fxe6 36. Qxe6+ Kg7 37. Qe5+ (37. Qxd5 Qb1+ 38. Kh2 Bd6+ 39. g3 Qxa2 $11) 37... Kg6 38. Qg5+ (38. Qxd5 Qb1+ 39. Kh2 Bd6+ 40. g3 Qxa2 $14) 38... Kf7 39. Qxh5+ Kg7 40. Qe5+ (40. Qxd5 Qxa2 41. Qg5+ Kh8 $11) 40... Kg6 41. Qe6+ (41. Qxd5 Qb1+ 42. Kh2 Bd6+ 43. g3 Qxa2 $18) 41... Kg7 42. Qe5+ (42. Qxd5 Qxa2 43. Qg5+ Kh8 $11) 42... Kg6 43. Qe8+ (43. Qxd5 Qb1+ 44. Kh2 Bd6+ 45. g3 Qxa2 $16) 43... Kg7 44. Qe5+) 35. Qe8 {[%emt 0:01:53]} (35. Rxe6 $2 Qf5 $19) (35. Ne5 $142) 35... Rb6 {[%emt 0:00:55]} (35... e5 $142 36. Rxe5 Rg6 37. Rxd5 (37. Re7 Rf6 $18) 37... Qc1+ 38. Kh2 Qc6) 36. Ng5 {[%emt 0:01:06] White threatens Qf7+ and mate.} Qf5 {[%emt 0:00:14] Prevents Qf7+.} 37. Nxe6 {[%emt 0:01:21]} Qf7 {[%emt 0:00:05]} 38. Qc8 {[%emt 0:00:37] Hoping for Nxf8.} Qf5 {[%emt 0:00:11]} 39. Re3 {[%emt 0:01:03] aiming for Rg3+.} (39. Qxc7 $2 {perishes.} Rxe6 40. Rxe6 Qxe6 $19) 39... Kf7 {[%emt 0:01:34][%cal Rb6e6]} 40. Qxf8+ {[%emt 0:00:10] Ingenious play by Hakobyan!   Weighted Error Value: White=0.22 (precise) /Black=0.48} 1-0